Cogmind - Beta 16 @@@ ROGUE MODE // 2026.01.04 @ 22:55:40 Player: Strick9 Result: Destroyed by Enhanced Grunt with Neutron Cannon Performance ------------- Evolutions (3) 1500 Regions Visited (9) 1800 Robots Destroyed (79) 395 Value Destroyed (2647) 2647 Prototype IDs (15) 300 Alien Tech Used (0) 0 Bonus (500) 500 TOTAL SCORE: 7142 Bonus ------- Entered Garrisons 200 Met Data Miner 300 Cogmind --------- Core Integrity 0/700 Matter 159/300 Energy 100/100 System Corruption 5% Temperature Cool (0) Movement Core (200) Ox3 Location -7/Data Miner Parts ------- > --- POWER (2) -------- (None) > --- PROPULSION (4) --- (None) > --- UTILITY (4) ------ Medium Storage Unit > --- WEAPON (3) ------- (None) > --- INVENTORY (10) --- Light Ion Engine Compact Wheel Launcher Guidance Computer Peak State ------------ > --- POWER ------------ Deuterium Engine Enhanced Nuclear Core > --- PROPULSION ------- Medium Treads Medium Treads Medium Treads Medium Treads > --- UTILITY ---------- Advanced Heat Sink Medium Storage Unit Matter Filter Kinecellerator > --- WEAPON ----------- Flak Gun Flak Gun Flak Cannon > --- INVENTORY -------- Deuterium Engine Deuterium Engine Light Treads Improved Heat Sink Launcher Guidance Computer Lightning Gun Advanced Beam Rifle Improved EM Pulse Cannon Improved EM Pulse Cannon Remote Datajack [Rating: 52] Favorites ----------- Power Deuterium Engine Engine Deuterium Engine Power Core Light Nuclear Core Propulsion Medium Treads Treads Medium Treads Leg Aluminum Leg Wheel Armored Wheel Flight Unit Flight Unit Utility Medium Storage Unit Device Matter Filter Storage Medium Storage Unit Processor Launcher Guidance Computer Hackware Makeshift Hacking Suite Protection Light Armor Plating Weapon Gauss Rifle Energy Gun Advanced Beam Rifle Ballistic Gun Gauss Rifle Ballistic Cannon Flak Cannon Launcher Heavy Rocket Launcher Slashing Weapon Blade Saw Build | -11 -10 -9 -8 -8 -8 -7 -7 -7 -7 ------- Run | Yrd Mat Mat Mat Sto Gar Fac Low Low Dat Slots Evolved 6 | . . 2 2 . . 2 . . . Power 1 | . . . . . . 1 . . . Propulsion 2 | . . 1 1 . . . . . . Utility 2 | . . 1 1 . . . . . . Weapon 1 | . . . . . . 1 . . . Parts Attached 102 | 5 18 16 3 . 24 19 11 . 6 Power 18 | 1 2 2 . . 4 5 2 . 2 Engine 16 | 1 2 2 . . 4 4 2 . 1 Core 2 | . . . . . . 1 . . 1 Reactor . | . . . . . . . . . . Propulsion 30 | 2 8 3 1 . 9 4 3 . . Treads 8 | . . . . . 1 4 3 . . Leg 11 | 2 6 . . . 3 . . . . Wheel 5 | . 2 2 1 . . . . . . Hover . | . . . . . . . . . . Flight 6 | . . 1 . . 5 . . . . Utility 22 | 1 2 5 . . 6 3 4 . 1 Device 8 | . . 3 . . 2 2 1 . . Storage 3 | 1 . 1 . . . 1 . . . Processor 1 | . . . . . . . 1 . . Hackware 2 | . . 1 . . . . 1 . . Protection 8 | . 2 . . . 4 . 1 . 1 Artifact . | . . . . . . . . . . Weapon 32 | 1 6 6 2 . 5 7 2 . 3 Energy Gun 10 | . 1 4 2 . 2 . . . 1 Energy Cannon . | . . . . . . . . . . Ballistic Gun 15 | 1 5 . . . 1 6 1 . 1 Ballistic Cannon 4 | . . . . . 2 1 . . 1 Launcher 2 | . . 1 . . . . 1 . . Special Weapon . | . . . . . . . . . . Impact Weapon . | . . . . . . . . . . Slashing Weapon 1 | . . 1 . . . . . . . Piercing Weapon . | . . . . . . . . . . Special Melee Weapon . | . . . . . . . . . . Unidentified Prototypes 5 | . . 3 1 . . 1 . . . Parts Lost 55 | . . 2 . . 25 1 8 . 19 Power 9 | . . . . . 3 1 1 . 4 Propulsion 17 | . . . . . 11 . 1 . 5 Utility 14 | . . 1 . . 5 . 4 . 4 Weapon 15 | . . 1 . . 6 . 2 . 6 Highest Loss Streak 19 | . . 2 . . 15 1 5 . 19 To Critical Strikes . | . . . . . . . . . . Average Backups 8 | 3 7 8 9 10 7 9 9 10 8 Power 1 | . 1 1 2 2 1 1 1 3 2 Propulsion 1 | 1 1 1 1 1 1 . 2 2 1 Utility 1 | . 2 2 1 1 1 1 2 2 1 Weapon 3 | 1 2 3 5 6 4 4 2 3 2 Tool/Special . | . . . . . . . . . . Unused Backups 30 | . 9 4 1 . . 13 1 . 2 Power 2 | . 1 1 . . . . . . . Propulsion 6 | . 5 . . . . . . . 1 Utility 6 | . 1 2 . . . 2 . . 1 Weapon 14 | . 2 1 1 . . 10 . . . Tool/Special 2 | . . . . . . 1 1 . . Average Slot Usage (%) 96 | . 99 99 90 90 89 97 96 100 88 Engine 12 | . 14 11 9 9 8 14 14 15 12 Treads 16 | . . . . . 1 22 29 30 25 Leg 4 | . 27 . . . 1 2 . . . Wheel 5 | . . 32 36 36 6 . . . . Flight 3 | . . . . . 20 2 . . . Device 10 | . . 10 9 9 16 20 12 . . Storage 8 | . 14 11 9 9 9 7 7 7 7 Processor 2 | . . . . . . . 5 7 5 Hackware 2 | . . 8 9 9 1 . . 7 6 Protection 4 | . 13 2 . . 6 2 . 7 7 Energy Gun 6 | . 7 19 18 18 11 6 . . . Ballistic Gun 13 | . 20 1 . . 2 12 18 23 17 Ballistic Cannon 1 | . . . . . 3 3 . . 1 Launcher 1 | . . . . . . . 3 . . Peak Build Rating 52 | 5 12 25 28 28 30 52 51 48 48 Average Rating 33 | 4 10 22 26 28 17 41 47 48 41 On Entrance 26 | . 5 12 25 28 28 20 51 48 48 Avg Prop Armor Cover (%) 5 | . . . . . 5 6 . . . Naked Turns . | . . . . . . . . . . Heaviest Build 51 | 9 21 24 26 26 32 50 51 46 48 Greatest Support 112 | 20 24 36 48 48 48 112 112 96 96 Greatest Overweight (x) 10 | 2 1 . . . 10 1 . . 5 Average Overweight (x) . | . . . . . 1 . . . . Largest Inventory Capacity 10 | 8 8 10 10 10 10 10 10 10 10 Average Capacity 9 | 7 8 9 10 10 10 10 10 10 10 Most Carried 10 | 7 8 10 10 10 10 10 10 10 10 Average Carried 8 | 3 7 8 9 10 7 9 9 10 7 Final Capacity 10 | 8 8 10 10 10 10 10 10 10 10 Final Carried 10 | 7 8 10 10 10 3 10 10 10 3 Class Distribution -------------------- 50% | Gunner 30% | Mutant 13% | Scavenger-Mutant 6% | Scavenger-Tank Dominant Class ---------------- Mutant | -10/Materials Mutant | -9/Materials Mutant | -8/Materials Mutant | -8/Storage Scavenger-Mutant | -8/Garrison Gunner | -7/Factory Gunner | -7/Lower Caves Gunner | -7/Lower Caves Gunner | -7/Data Miner Resources | -11 -10 -9 -8 -8 -8 -7 -7 -7 -7 ----------- Run | Yrd Mat Mat Mat Sto Gar Fac Low Low Dat Matter Collected 2383 | 153 543 232 . . 544 408 503 . . Remotely . | . . . . . . . . . . Salvage Created 3020 | . 802 615 . . 676 645 182 . 100 Parts 159 | . 32 45 . . 36 33 6 . 7 Haulers Intercepted 3 | . 1 1 . . . 1 . . . Recyclers Shooed 1 | . 1 . . . . . . . . Parts Field Recycled . | . . . . . . . . . . Retrieved Matter . | . . . . . . . . . . Parts Self-Destructed 7 | . . . . . . . 7 . . Prevented . | . . . . . . . . . . Parts Restored . | . . . . . . . . . . Kills | -11 -10 -9 -8 -8 -8 -7 -7 -7 -7 ------- Run | Yrd Mat Mat Mat Sto Gar Fac Low Low Dat Combat Hostiles Destroyed 65 | . 14 12 . . 20 11 7 . 1 Melee 2 | . . . . . 2 . . . . Guns 50 | . 14 10 . . 11 9 6 . . Cannons 8 | . . . . . 5 2 . . 1 AOE 2 | . . 1 . . . . 1 . . Classes Destroyed 15 | . 5 4 . . 3 1 2 . . Worker 2 | . 1 1 . . . . . . . Builder 1 | . . . . . . 1 . . . Hauler 3 | . 1 1 . . . 1 . . . Recycler 6 | . 3 . . . . 3 . . . Operator 1 | . . 1 . . . . . . . Watcher 1 | . . 1 . . . . . . . Swarmer 15 | . 3 . . . 5 2 5 . . Grunt 25 | . 11 8 . . 5 1 . . . Brawler 2 | . . 1 . . 1 . . . . Duelist 4 | . . . . . 1 3 . . . Sentry 10 | . . 3 . . 5 2 . . . Hunter 2 | . . . . . 2 . . . . Programmer 4 | . . . . . 1 3 . . . Behemoth 1 | . . . . . . . 1 . . Enhanced Grunt 1 | . . . . . . . . . 1 Thief 1 | . . . . . . . 1 . . Best Kill Streak 11 | . 6 4 . . 11 7 3 . 1 Combat Bots Only 11 | . 3 3 . . 11 4 3 . 1 Max Kills in Single Turn 2 | . 1 2 . . 1 2 1 . 1 Gunslinging 1 | . . 1 . . . . . . . Exploded 1 | . . 1 . . . . 1 . . Melee 1 | . . . . . 1 . . . . Uniques/NPCs Destroyed . | . . . . . . . . . . Combat | -11 -10 -9 -8 -8 -8 -7 -7 -7 -7 -------- Run | Yrd Mat Mat Mat Sto Gar Fac Low Low Dat Hostile Shots Fired 580 | . 42 42 2 . 254 32 128 . 80 Missed 167 | . 16 15 2 . 64 8 38 . 24 Hits 413 | . 26 27 . . 190 24 90 . 56 Melee 7 | . . . . . 1 3 3 . . Projectile 406 | . 26 27 . . 189 21 87 . 56 Critical Strikes 12 | . . . . . 10 1 1 . . Part Disruptions 1 | . . . . . . . . . 1 Damage Taken 7563 | . 301 318 . . 2422 425 1536 . 2561 Core 1228 | . 17 42 . . 445 30 104 . 590 Absorbed by Shields . | . . . . . . . . . . Redirected to Shielding 105 | . . . . . . . . . 105 Core Remaining (%) 75 | 100 93 89 . . 19 . . . . Volleys Fired 192 | . 44 28 . . 57 25 31 . 7 Largest 3 | . 2 2 . . 2 3 3 . 3 Hottest 150 | . 73 122 . . 150 93 95 . 133 Shots Fired 423 | . 88 53 . . 104 64 92 1 21 Gun 375 | . 88 51 . . 84 51 86 1 14 Cannon 40 | . . . . . 20 13 . . 7 Launcher 8 | . . 2 . . . . 6 . . Special . | . . . . . . . . . . Kinetic 277 | . 69 . . . 38 64 86 1 19 Thermal 136 | . 19 51 . . 66 . . . . Explosive 8 | . . 2 . . . . 6 . . Electromagnetic 2 | . . . . . . . . . 2 Robot Hit Streak 16 | . 9 9 . . 16 11 10 . 3 Robot Miss Streak 7 | . 2 2 . . 7 6 3 1 6 Penetration Max 1 | . . . . . . . . . 1 Secondary Targets 6 | . . 1 . . 3 . 2 . . Max Gunslinging Chain 1 | . . 1 . . 1 . 1 . . Shots Hit Robots 303 | . 61 34 . . 89 57 54 . 8 Core Hits 186 | . 30 16 . . 50 72 15 . 3 Critical Kills 2 | . . . . . . 1 . . 1 Critical Parts Destroyed 5 | . . . . . . . 2 . 3 Critical Strikes 20 | . . 3 . . 9 1 3 . 4 Burn 11 | . . 3 . . 8 . . . . Destroy 8 | . . . . . . 1 3 . 4 Sever 1 | . . . . . 1 . . . . Melee Attacks 11 | . . 6 . . 5 . . . . Impact . | . . . . . . . . . . Slashing 11 | . . 6 . . 5 . . . . Piercing . | . . . . . . . . . . Sneak Attacks . | . . . . . . . . . . Combat Hostiles . | . . . . . . . . . . Follow-up Attacks . | . . . . . . . . . . Damage Inflicted 6502 | . 867 860 . . 1801 1308 1442 . 224 Guns 5006 | . 867 660 . . 1219 1030 1107 . 123 Cannons 883 | . . . . . 508 278 . . 97 Explosions 535 | . . 200 . . . . 335 . . Melee 74 | . . . . . 74 . . . . Ramming 4 | . . . . . . . . . 4 Kinetic 4005 | . 693 . . . 701 1308 1107 . 196 Thermal 1860 | . 174 660 . . 1026 . . . . Explosive 535 | . . 200 . . . . 335 . . Electromagnetic 24 | . . . . . . . . . 24 Impact . | . . . . . . . . . . Slashing 74 | . . . . . 74 . . . . Piercing . | . . . . . . . . . . Highest Corruption 8 | . . . 5 5 8 5 5 5 5 Average Corruption 5 | . . . 5 5 7 3 5 5 5 Corruption Purged . | . . . . . . . . . . Corruption Blocked . | . . . . . . . . . . Effects 96 | . . . . 1 32 7 32 20 4 Message Errors 27 | . . . . 1 8 3 10 4 1 Matter Fused 25 | . . . . . 9 3 6 5 2 Heat Flow Errors 4 | . . . . . . . 2 2 . Energy Discharges 8 | . . . . . 1 1 4 2 . Parts Rejected 1 | . . . . . 1 . . . . Parts Fused 2 | . . . . . 1 . . 1 . Data Loss (minor) 14 | . . . . . 4 . 6 4 . Data Loss (major) 1 | . . . . . . . . 1 . Misfires 10 | . . . . . 5 . 3 1 1 Alerts 2 | . . . . . 1 . 1 . . Weapon Failures 2 | . . . . . 2 . . . . Overload Shots . | . . . . . . . . . . Overflow Damage 51 | . . . . . 34 . 17 . . Projectiles 34 | . . . . . 34 . . . . Explosions 17 | . . . . . . . 17 . . Melee . | . . . . . . . . . . Knockbacks 17 | . . . . . 5 9 . . 3 Impact 1 | . . . . . . . . . 1 Kinetic 15 | . . . . . 5 9 . . 1 Secondary 1 | . . . . . . . . . 1 Self-Inflicted Damage 65 | . . . . . . . 63 . 2 Shots 1 | . . . . . . . 1 . . Rammed 4 | . . . . . . . . . 4 Targets Rammed 4 | . . . . . . . . . 4 Kicked . | . . . . . . . . . . Crushed . | . . . . . . . . . . Highest Temperature 579 | . 165 161 . . 579 . 258 278 162 Average Temperature 93 | . 52 65 . . 142 . 117 117 88 Received Heat Transfer 1194 | . 138 144 . . 765 27 120 . . Effects 13 | . . . . . 12 . 1 . . Energy Bleed 4 | . . . . . 3 . 1 . . Matter Decay 2 | . . . . . 2 . . . . Short Circuit 1 | . . . . . 1 . . . . Damage (minor) 2 | . . . . . 2 . . . . Damage (major) 4 | . . . . . 4 . . . . Siege Activations . | . . . . . . . . . . Martial Activations . | . . . . . . . . . . Shielding Activations . | . . . . . . . . . . Robots Disrupted . | . . . . . . . . . . Combat Hostiles . | . . . . . . . . . . Robots Corrupted . | . . . . . . . . . . Combat Hostiles . | . . . . . . . . . . Parts Fried . | . . . . . . . . . . Impact Corruptions . | . . . . . . . . . . Robots Melted 3 | . . 1 . . 2 . . . . Combat Hostiles 3 | . . 1 . . 2 . . . . Parts Melted 13 | . 2 2 . . 9 . . . . Heat Transferred 3934 | . 518 1443 . . 1973 . . . . Parts Sabotaged . | . . . . . . . . . . Parts Stolen 2 | . . . . . . . 2 . . Parts Stripped . | . . . . . . . . . . Power Chain Reactions . | . . . . . . . . . . Alert | -11 -10 -9 -8 -8 -8 -7 -7 -7 -7 ------- Run | Yrd Mat Mat Mat Sto Gar Fac Low Low Dat Maximum Alert Level 1 | . . 1 . . 1 . . . . Low Security (%) 96 | 100 100 97 100 100 86 100 . . . Level 1 3 | . . 2 . . 13 . . . . Level 2 . | . . . . . . . . . . Level 3 . | . . . . . . . . . . Level 4 . | . . . . . . . . . . Level 5 . | . . . . . . . . . . High Security . | . . . . . . . . . . Max Security . | . . . . . . . . . . Peak Influence 222 | . 187 211 87 32 222 111 . . . Initial 111 | . . 67 87 32 22 111 . . . Average 84 | . 80 58 83 32 148 51 . . . Influence Increases 1785 | . 432 453 . 3 440 302 155 . . Destroy 0b10 Robot/C 1260 | . 280 240 . . 400 220 120 . . Destroy 0b10 Robot/NC 70 | . 25 20 . . . 25 . . . Destroy Leader 208 | . 62 54 . . 20 52 20 . . Successful Hack 22 | . 4 10 . 3 . 5 . . . Disable Machine 75 | . 30 45 . . . . . . . Destroy Structure 15 | . 1 9 . . 5 . . . . Partial Spotted 15 | . . 15 . . . . . . . Lose Combat Pursuer 120 | . 30 60 . . 15 . 15 . . Influence Decreases 1785 | . 272 405 131 45 263 439 171 59 . Entered New Map 414 | . . 93 121 45 13 101 29 12 . Time Decay 1026 | . 272 239 10 . . 328 130 47 . Lost Part 292 | . . 20 . . 250 10 12 . . Purge Threat 53 | . . 53 . . . . . . . Squads Dispatched 7 | . 3 2 . . . 2 . . . Investigation 1 | . . 1 . . . . . . . Extermination 1 | . . . . . . 1 . . . Reinforcement 5 | . 3 1 . . . 1 . . . Assault . | . . . . . . . . . . Garrison . | . . . . . . . . . . Intercept . | . . . . . . . . . . Searches Triggered . | . . . . . . . . . . Construction Impeded . | . . . . . . . . . . Haulers Reinforced . | . . . . . . . . . . Active Scanning Responses . | . . . . . . . . . . Cargo Convoy Interrupts . | . . . . . . . . . . Stealth | -11 -10 -9 -8 -8 -8 -7 -7 -7 -7 --------- Run | Yrd Mat Mat Mat Sto Gar Fac Low Low Dat Distress Signals 8 | . 3 4 . . . 1 . . . Communications Jammed . | . . . . . . . . . . Distress Signals . | . . . . . . . . . . Times Spotted 108 | . 23 26 4 . 24 12 11 . 8 Peak Tracking Total 10 | . 4 10 5 . 10 3 4 . 4 Tactical Retreats 9 | . 2 5 . . 1 . 1 . . ECM-based Alert Blocks 5 | . . 5 . . . . . . . Traps | -11 -10 -9 -8 -8 -8 -7 -7 -7 -7 ------- Run | Yrd Mat Mat Mat Sto Gar Fac Low Low Dat Traps Triggered 13 | . . 1 . . 9 3 . . . Indirectly . | . . . . . . . . . . Trap Hack Attempts . | . . . . . . . . . . Triggered . | . . . . . . . . . . Disarmed . | . . . . . . . . . . Reprogrammed . | . . . . . . . . . . Reused . | . . . . . . . . . . Traps Extracted . | . . . . . . . . . . Installed . | . . . . . . . . . . Triggered . | . . . . . . . . . . Machines | -11 -10 -9 -8 -8 -8 -7 -7 -7 -7 ---------- Run | Yrd Mat Mat Mat Sto Gar Fac Low Low Dat Machines Disabled 6 | . 2 3 . . . . . . 1 Max in Single Turn 2 | . 1 2 . . . . . . 1 Machines Repaired . | . . . . . . . . . . Machines Dismantled . | . . . . . . . . . . Machines Sabotaged . | . . . . . . . . . . Overloaded Fab Kills . | . . . . . . . . . . Hacking | -11 -10 -9 -8 -8 -8 -7 -7 -7 -7 --------- Run | Yrd Mat Mat Mat Sto Gar Fac Low Low Dat Machines Accessed 21 | . 5 6 . 2 1 4 1 . 2 Terminals 14 | . 4 5 . 1 1 3 . . . Fabricators . | . . . . . . . . . . Repair Stations . | . . . . . . . . . . Recycling Units 2 | . 1 1 . . . . . . . Scanalyzers 1 | . . . . . . 1 . . . Garrison Access 1 | . . . . 1 . . . . . Total Hacks 59 | . 8 19 . 3 1 5 1 . 22 Successful 45 | . 4 13 . 1 . 4 1 . 22 Failed 14 | . 4 6 . 2 1 1 . . . Catastrophic 1 | . 1 . . . . . . . . Database Lockouts . | . . . . . . . . . . Manual 19 | . 6 10 . 2 . 1 . . . Terminals 29 | . 6 17 . 2 1 3 . . . Fabricators . | . . . . . . . . . . Repair Stations . | . . . . . . . . . . Recycling Units 4 | . 2 2 . . . . . . . Scanalyzers 2 | . . . . . . 2 . . . Garrison Access 1 | . . . . 1 . . . . . Terminal Hacks 36 | . 2 9 . . . 2 1 . 22 Part Schematic 12 | . . . . . . . . . 12 Robot Schematic 7 | . . . . . . . . . 7 Robot Analysis 4 | . 2 2 . . . . . . . Prototype ID Bank 3 | . . . . . . . . . 3 Open Door 1 | . . . . . . . 1 . . Open DSF 2 | . . . . . . 2 . . . Emergency Access Points 1 | . . 1 . . . . . . . Alert Level 3 | . . 3 . . . . . . . Unreport Threat 1 | . . 1 . . . . . . . Locate Traps 1 | . . 1 . . . . . . . Maintenance Status 1 | . . 1 . . . . . . . Fabricator Hacks . | . . . . . . . . . . Repair Station Hacks . | . . . . . . . . . . Recycling Unit Hacks 3 | . 1 2 . . . . . . . Report Inventory 2 | . 1 1 . . . . . . . Retrieve Components 1 | . . 1 . . . . . . . Scanalyzer 2 | . . . . . . 2 . . . Insert Component 1 | . . . . . . 1 . . . Analyze 1 | . . . . . . 1 . . . Garrison Access Hacks 1 | . . . . 1 . . . . . Unlock Access 1 | . . . . 1 . . . . . Unauthorized Hacks 3 | . 1 2 . . . . . . . Terminals 2 | . . 2 . . . . . . . Botnet 2 | . . 2 . . . . . . . Fabricators . | . . . . . . . . . . Repair Stations . | . . . . . . . . . . Recycling Units 1 | . 1 . . . . . . . . Monitor 1 | . 1 . . . . . . . . Scanalyzers . | . . . . . . . . . . Garrison Access . | . . . . . . . . . . Data Cores Recovered 1 | . . 1 . . . . . . . Used . | . . . . . . . . . . Hacking Detections 15 | . 4 6 . 1 1 3 . . . Full Trace Events . | . . . . . . . . . . Feedback Events . | . . . . . . . . . . Feedback Blocked . | . . . . . . . . . . Robot Schematics Acquired 7 | . . . . . . . . . 7 Robots Built . | . . . . . . . . . . Authchips . | . . . . . . . . . . Time . | . . . . . . . . . . Total Robot Build Rating . | . . . . . . . . . . Part Schematics Acquired 12 | . . . . . . . . . 12 Parts Built . | . . . . . . . . . . Authchips . | . . . . . . . . . . Time . | . . . . . . . . . . Total Part Build Rating . | . . . . . . . . . . Part Studies Acquired . | . . . . . . . . . . Parts Repaired . | . . . . . . . . . . Time . | . . . . . . . . . . Parts Recycled . | . . . . . . . . . . Recycled Matter . | . . . . . . . . . . Retrieved Matter . | . . . . . . . . . . Retrieved Components 3 | . . 3 . . . . . . . Parts Scanalyzed 1 | . . . . . . 1 . . . Part Schematics Acquired . | . . . . . . . . . . Parts Damaged . | . . . . . . . . . . Bothacking | -11 -10 -9 -8 -8 -8 -7 -7 -7 -7 ------------ Run | Yrd Mat Mat Mat Sto Gar Fac Low Low Dat Used RIF Installer . | . . . . . . . . . . Robots Hacked . | . . . . . . . . . . Non-combat . | . . . . . . . . . . Combat . | . . . . . . . . . . Robot Hacks Applied . | . . . . . . . . . . Relay Couplers Released 4 | . . . . . 4 . . . . Programmers 4 | . . . . . 4 . . . . Fabnet Peak Effective % . | . . . . . . . . . . Robots Rewired . | . . . . . . . . . . Allies Hacked . | . . . . . . . . . . Hacks Repelled . | . . . . . . . . . . Allies | -11 -10 -9 -8 -8 -8 -7 -7 -7 -7 -------- Run | Yrd Mat Mat Mat Sto Gar Fac Low Low Dat Total Allies . | . . . . . . . . . . Largest Group . | . . . . . . . . . . Highest-Rated Group . | . . . . . . . . . . Highest-Rated Ally . | . . . . . . . . . . Total Orders . | . . . . . . . . . . Ally Attacks . | . . . . . . . . . . Total Damage . | . . . . . . . . . . Kills . | . . . . . . . . . . Allies Corrupted . | . . . . . . . . . . Allies Melted . | . . . . . . . . . . Intel | -11 -10 -9 -8 -8 -8 -7 -7 -7 -7 ------- Run | Yrd Mat Mat Mat Sto Gar Fac Low Low Dat Active Infowar (turns) 554 | . . 445 . . 109 . . . . Seismic 388 | . . 388 . . . . . . . ECM 166 | . . 57 . . 109 . . . . Robot Analysis Total 4 | . 2 2 . . . . . . . Derelict Logs Recovered 2 | . . . . . . . 1 1 . Drone Launches . | . . . . . . . . . . Drone Recoveries . | . . . . . . . . . . Exploration | -11 -10 -9 -8 -8 -8 -7 -7 -7 -7 ------------- Run | Yrd Mat Mat Mat Sto Gar Fac Low Low Dat Turns Passed 5524 | 67 713 630 30 10 909 992 1362 693 118 Spaces Moved 3006 | 46 376 469 24 12 427 434 753 417 48 Core 23 | 8 . . . . 14 . . . 1 Treads 1685 | . . . . . 34 434 753 417 47 Legs 414 | 38 368 . . . 8 . . . . Wheels 602 | . 8 469 24 12 89 . . . . Hover . | . . . . . . . . . . Flight 282 | . . . . . 282 . . . . Fastest Speed 50 | 50 90 90 90 90 90 160 160 165 165 Average Speed 143 | 115 123 90 90 90 132 180 161 165 168 Slowest Speed 600 | 150 190 90 90 90 600 240 165 165 300 Overloaded Moves . | . . . . . . . . . . Propulsion Burnouts . | . . . . . . . . . . Robots Hopped . | . . . . . . . . . . Potential Cave-ins . | . . . . . . . . . . Cave-ins Triggered . | . . . . . . . . . . Exploration Rate (%) 38 | 3 61 35 3 5 53 17 87 55 70 Regions Visited 9 Branch Regions 4 Pre-discovered Areas . | . . . . . . . . . . Known Exits Taken 2 | . . . . 1 . . 1 . . Unknown Exits Taken 6 | 1 1 1 1 . . 1 . 1 . Scrap Searched 2 | . . . . . . . 2 . . Spaces Dug . | . . . . . . . . . . Terrain Destroyed 41 | . . 5 . . . . 35 . 1 Melee . | . . . . . . . . . . Projectile 4 | . . . . . . . 3 . 1 AOE 37 | . . 5 . . . . 32 . . Terrain Rammed . | . . . . . . . . . . Walls Destroyed . | . . . . . . . . . . Machines Disabled . | . . . . . . . . . . Actions | -11 -10 -9 -8 -8 -8 -7 -7 -7 -7 --------- Run | Yrd Mat Mat Mat Sto Gar Fac Low Low Dat Total 3843 | 57 558 613 33 11 657 599 827 422 66 Wait 263 | . 81 67 . . 29 60 20 6 . Move 2994 | 45 375 468 23 11 423 433 752 416 48 Hop . | . . . . . . . . . . Pick Up 81 | 7 13 10 3 . 10 28 10 . . Fast Attach 38 | 5 4 7 2 . 10 8 2 . . Attach 43 | . 1 4 1 . 18 3 9 . 7 Detach . | . . . . . . . . . . Swap 39 | . 15 8 . . 3 11 2 . . Drop 79 | . 25 15 4 . 3 31 1 . . Fire 192 | . 44 28 . . 57 25 31 . 7 Melee 11 | . . 6 . . 5 . . . . Ram 4 | . . . . . . . . . 4 Kick . | . . . . . . . . . . Crush . | . . . . . . . . . . Escape Stasis 99 | . . . . . 99 . . . . Rewire . | . . . . . . . . . . Trap . | . . . . . . . . . . Miscellaneous . | . . . . . . . . . . Route ------- -11/Scrapyard -10/Materials (discovered 2 exits: *Mat / [*Min]) -9/Materials -8/Materials -8/Storage -8/Garrison (discovered 2 exits: *Fac x2) -7/Factory -7/Lower Caves -7/Lower Caves -7/Data Miner (discovered 1 exit: [*Pro]) History --------- Turn | Location | Event 49 | -11/Scrapyard | Discovered new exit (range 15) 68 | -11/Scrapyard | Entered Materials 278 | -10/Materials | Discovered new exit (range 5) 320 | -10/Materials | Build established: Mutant 735 | -10/Materials | Discovered new exit (range 15) 781 | -10/Materials | Entered another Materials area 781 | -9/Materials | Evolved 2 slots: Propulsion x1, Utility x1 1377 | -9/Materials | Discovered new exit (range 16) 1411 | -9/Materials | Entered another Materials area 1411 | -8/Materials | Evolved 2 slots: Propulsion x1, Utility x1 1413 | -8/Materials | Discovered new exit (range 8) 1441 | -8/Materials | Entered Storage 1451 | -8/Storage | Identified exit to Garrison 1451 | -8/Storage | Entered Garrison 1465 | -8/Garrison | Triggered checkpoint 1587 | -8/Garrison | Triggered checkpoint 1648 | -8/Garrison | Core integrity fell below 50% 1697 | -8/Garrison | Lost 15 parts (2p7n2u4w) 1702 | -8/Garrison | Destroyed 11 combat bots 1811 | -8/Garrison | Triggered checkpoint 1909 | -8/Garrison | Discovered new exit (range 13) 1953 | -8/Garrison | Attempted to access garrison exit controls, blocked by remote lockdown 1955 | -8/Garrison | Build established: Scavenger-Mutant 1993 | -8/Garrison | Triggered checkpoint 2189 | -8/Garrison | Discovered new exit (range 10) 2263 | -8/Garrison | Lost 5 parts (3n1u1w) 2306 | -8/Garrison | Core integrity fell below 20% 2330 | -8/Garrison | Lost 5 parts (1p1n2u1w) 2360 | -8/Garrison | Entered Factory 2360 | -7/Factory | Evolved 2 slots: Power x1, Weapon x1 2497 | -7/Factory | Identified exit to DSF 2716 | -7/Factory | Build established: Scavenger-Tank 3017 | -7/Factory | Build established: Gunner 3228 | -7/Factory | Discovered new exit (range 10) 3352 | -7/Factory | Entered Lower Caves 3724 | -7/Lower Caves | Encountered a Warlord checkpoint 3741 | -7/Lower Caves | Identified exit to Lower Caves 4286 | -7/Lower Caves | Spotted B-75 Beast 4361 | -7/Lower Caves | Destroyed B-75 Beast 4377 | -7/Lower Caves | Lost 5 parts (4u1w) 4714 | -7/Lower Caves | Entered another Lower Caves area 4845 | -7/Lower Caves | Learned Factory garrison access intel 5156 | -7/Lower Caves | Discovered new exit (range 9) 5407 | -7/Lower Caves | Entered Data Miner 5407 | -7/Data Miner | Discovered new exit (range 6) 5439 | -7/Data Miner | Met Data Miner 5445 | -7/Data Miner | Data Conduit disabled 5504 | -7/Data Miner | Core integrity fell below 50% 5521 | -7/Data Miner | Core integrity fell below 20% 5525 | -7/Data Miner | Destroyed by Enhanced Grunt with Neutron Cannon Last Messages --------------- 05506_ Launcher Guidance Computer destroyed. 05508_ Lgt. Deuterium Engine destroyed. 05509_ Slug penetrates Wall. 05509_ Coil Gun destroyed. 05512_ Enhanced Grunt suffers critical hit (Destroy). 05512_ Destroyed Prototype Leg. 05513_ Bore Cannon destroyed. 05513_ Med. Treads destroyed. 05514_ Lightning Gun destroyed. 05516_ Lgt. Nuclear Core destroyed. 05516_ Mak. Hacking Suite destroyed. 05518_ Slammed into Enhanced Grunt. [Achievement: For Emergencies Only] 05519_ Enhanced Grunt heat short circuits Adv. Particle Charger. 05520_ Slammed into Enhanced Grunt. 05522_ Imp. Core Shielding destroyed. 05524_ Slammed into Enhanced Grunt. 05524_ Enhanced Grunt knocked back. Map ----- +----------------------------------------------------+ | | | | | | | ??????????????????????????????????????????? | | ??????????????????????????????????????????? | | ??????????????????????????????????????????? | | ??????????????????????????????????????????? | | ?????????????????????????????????????####?? | | ???????????##########??????????????### #?? | | ??????????""""""""""######?#?#????## #?? | | ????????""""" """"""""# # # # ## < ##?? | | ????????""""" ### | | ???????""" | | ???????""" | | ???????"" | | ??????"""" | | ??????"" """"""""""""""""### | | ???????"""" """###############?? | | ????????""" " """###???????????????? | | ????????""""" "#####?????????????????? | | ?????????###"## "#?????????????????????? | | ???????????#??## #?????????????????????? | | ??????????????## "#?????????????????????? | | ??????????????# "#?????????????????????? | | ?????????????## g"#?????????????????????? | | ?????????????# !!@"#?????????????????????? | | ?????????????##;%%!"#?????????????????????? | | ?????????????# #!g!g##????????????????????? | | ??????????????## ##???????????????????? | | ???????????#?## % ; #??????????????????? | | ?????????"##"#" ";##??????????????????? | | ?????????"""""" #;##?????????????????? | | ?????????#""""" X""" "?????????????????? | | ?????????###"#" "##"##????????????????? | | ???????????#"## """"#?????????????????? | | ??????????????#; "##"#?????????????????? | | ??????????????#;;#;###????????????????????? | | ??????????????#### #??????????????????????? | | ?????????????????##???????????????????????? | | ??????????????????????????????????????????? | | ??????????????????????????????????????????? | | ??????????????????????????????????????????? | | ??????????????????????????????????????????? | | ??????????????????????????????????????????? | | ??????????????????????????????????????????? | | ??????????????????????????????????????????? | | ??????????????????????????????????????????? | | ??????????????????????????????????????????? | | ??????????????????????????????????????????? | | ??????????????????????????????????????????? | +----------------------------------------------------+ Best States ------------- Heat Dissipation 63 Energy Generation 23 Energy Capacity 450 Matter Stores 300 Matter Capacity 300 Sight Range 16 Terrain Scan Density 10 ECM Strength 1 Armor Coverage 225 Core Shielding 30 Evasion (%) 55 Launcher Accuracy 20 Recoil Reduction 4 Matter Filtering 30 Particle Charging 15 Kinecelleration 30 Offensive Hacking 11 Item Schematics ----------------- Combat Drone Bay | -7/Data Miner | Free Lgt. Regenerative Plating | -7/Data Miner | Free Cld. Cesium-ion Thruster | -7/Data Miner | Free Exp. Power Shielding | -7/Data Miner | Free Antimatter Cannon | -7/Data Miner | Free Nuclear Pulse Array | -7/Data Miner | Free Imp. Dynamic Insulation System | -7/Data Miner | Free Imp. Arc Projector | -7/Data Miner | Free Force Field | -7/Data Miner | Free Neutrino Core | -7/Data Miner | Free Hvy. Disruptor Cannon | -7/Data Miner | Free Imp. Phase Shifter | -7/Data Miner | Free Robot Schematics ------------------ O-24 Administrator | -7/Data Miner | Free Y-54 Guardian | -7/Data Miner | Free R-10 Processor | -7/Data Miner | Free X-67 Chaingunner | -7/Data Miner | Free L-41 Fighter | -7/Data Miner | Free S-27 Virus | -7/Data Miner | Free X-62 Marksman | -7/Data Miner | Free Fabricated ------------ Nothing Repaired ---------- Nothing Studied --------- None Alien Tech Used ----------------- None Achievements -------------- Armchair Analyst Bumper Bots For Emergencies Only Overwhelming Well Done Challenges ------------ None Game ------ Seed SchematicFortressObliterator Manual? 0 Play Time 01:36:39 Cumulative 42.7 hours Start 2026.01.04 @ 20:46:59 End 2026.01.04 @ 22:55:40 Sessions 3 Manual Loads 0 Difficulty Rogue Special Mode None Game No. 35 Rogue 35 Adventurer 0 Explorer 0 Win Type - Total 0 Types 0/0/0/0/0/0/0/0/0/0 Lore% 12 Gallery% 22 Achievement% 14 Wizard Run 0 Options --------- Layout 1 ASCII 0 Keyboard 1 Movement Numpad Keybinds 0 Fullscreen 1 Font 32/SmallcapsGlow Map View 50x35 Zoom Use 0% Tactical HUD 1 Map Filters NONE Filters NONE Steam 1 RUN: 248d0e7f-aad8-4a29-935c-023c04289a71